bitfinex/quotes_BTCUSD_20240703
["timestamp","ask_amount","ask_price","bid_price","bid_amount"]
[1719968717176,1.348714,62097.0,62096.0,0.35130028]
[1719968717381,1.274614,62097.0,62096.0,0.35130028]
[1719968717524,1.348714,62097.0,62096.0,0.35130028]
[1719968718092,1.274614,62097.0,62096.0,0.35130028]
[1719968718293,1.348714,62097.0,62096.0,0.35130028]
[1719968719555,1.341714,62097.0,62096.0,0.35130028]
[1719968719755,1.342714,62097.0,62096.0,0.35130028]
[1719968721955,1.342714,62097.0,62096.0,0.15870028]
[1719968722611,1.600375,62097.0,62096.0,0.15870028]
[1719968723193,1.600375,62097.0,62096.0,0.00020028]
[1719968725331,1.600375,62097.0,62096.0,0.00030028]
[1719968726314,1.600375,62097.0,62096.0,2.8e-07]
[1719968729013,1.526275,62097.0,62096.0,2.8e-07]
[1719968729219,1.600375,62097.0,62096.0,2.8e-07]
[1719968731592,1.600375,62097.0,62096.0,0.00010028]
[1719968733238,1.526275,62097.0,62096.0,0.00010028]
[1719968733368,1.600375,62097.0,62096.0,0.00010028]
[1719968737982,0.3487,62096.0,62092.0,3.7e-07]
[1719968738200,0.3487,62096.0,62071.0,0.011229]
[1719968738201,0.128865,62080.0,62079.0,0.3524]
[1719968738403,0.718627,62080.0,62079.0,0.3524]
[1719968738605,1.334089,62080.0,62079.0,0.3510076]
[1719968738769,0.257748,62076.0,62075.0,0.1619]
[1719968738933,0.386647,62072.0,62071.0,0.011229]
[1719968739144,1.14824845,62072.0,62068.0,1e-06]
[1719968739358,1.80964983,62069.0,62068.0,1e-06]
[1719968739558,0.386709,62062.0,62061.0,0.00637288]
[1719968739761,0.976621,62062.0,62061.0,0.00637288]
[1719968739962,1.592233,62062.0,62061.0,0.00637288]
[1719968740476,1.592233,62062.0,62061.0,0.0006549]
[1719968740791,1.604233,62062.0,62061.0,0.0006549]
[1719968741032,1.592233,62062.0,62061.0,0.0006549]
[1719968741421,1.160275,62054.0,62053.0,0.16020578]
[1719968741626,1.260475,62054.0,62053.0,0.16020578]
[1719968742996,1.260475,62054.0,62052.0,0.1959]
[1719968742997,0.902454,62053.0,62052.0,0.1959]
[1719968743175,0.902454,62053.0,62051.0,0.002]
[1719968743176,0.128924,62052.0,62051.0,0.002]
[1719968743332,1.002668,62052.0,62051.0,0.002]
[1719968743535,1.260416,62052.0,62051.0,0.002]
[1719968745458,1.518264,62052.0,62051.0,0.002]
[1719968746463,1.525164,62052.0,62051.0,0.002]
[1719968746757,1.518064,62052.0,62051.0,0.002]
[1719968746960,1.873064,62052.0,62051.0,1e-06]
[1719968747205,1.873064,62052.0,62047.0,0.00924]
[1719968747206,0.18893183,62048.0,62047.0,4e-07]
[1719968747348,0.63299583,62048.0,62047.0,4e-07]
[1719968747552,2.09929969,62048.0,62047.0,4e-07]
[1719968747752,2.35716369,62048.0,62047.0,4e-07]
[1719968748174,2.74636034,62048.0,62047.0,4e-07]
[1719968749033,2.56036034,62048.0,62047.0,4e-07]
[1719968749226,2.51330065,62048.0,62047.0,4e-07]
[1719968749990,2.56036034,62048.0,62047.0,4e-07]
[1719968750219,2.52730065,62048.0,62047.0,4e-07]
[1719968750424,2.51320065,62048.0,62047.0,4e-07]
[1719968750632,2.51310065,62048.0,62047.0,4e-07]
[1719968750812,2.52700065,62048.0,62047.0,4e-07]
[1719968751011,2.56006034,62048.0,62047.0,4e-07]
[1719968751216,3.04525065,62048.0,62047.0,4e-07]
[1719968751489,1.418576,62034.0,62033.0,4e-07]
[1719968751789,1.66447583,62034.0,62033.0,4e-07]
[1719968751977,1.704776,62034.0,62033.0,4e-07]
[1719968752369,1.518776,62034.0,62033.0,4e-07]
[1719968752790,1.56583569,62034.0,62033.0,4e-07]
[1719968752990,1.62553552,62034.0,62033.0,4e-07]
[1719968753231,1.56583569,62034.0,62033.0,4e-07]
[1719968753378,1.56573569,62034.0,62033.0,4e-07]
[1719968753581,1.57973569,62034.0,62033.0,4e-07]
[1719968753787,1.57963569,62034.0,62033.0,4e-07]
[1719968753988,1.32171269,62034.0,62033.0,0.00030057]
[1719968754168,1.288653,62034.0,62033.0,0.36140057]
[1719968754586,1.260653,62034.0,62033.0,0.36140057]
[1719968754761,1.260653,62034.0,62033.0,0.3611004]
[1719968754762,1.274653,62034.0,62033.0,0.3611004]
[1719968754983,1.274653,62034.0,62033.0,0.36140057]
[1719968755970,1.274653,62034.0,62033.0,0.3611004]
[1719968756171,1.260653,62034.0,62033.0,0.3611004]
[1719968756372,1.518576,62034.0,62033.0,4e-07]
[1719968756666,1.522676,62034.0,62033.0,4e-07]
[1719968756834,1.518676,62034.0,62033.0,4e-07]
[1719968757045,1.522576,62034.0,62033.0,4e-07]
[1719968757223,1.530616,62034.0,62033.0,4e-07]
[1719968757430,1.526716,62034.0,62033.0,4e-07]
[1719968757602,1.535716,62034.0,62033.0,4e-07]
[1719968757802,1.535716,62034.0,62033.0,0.0001004]
[1719968758021,1.526716,62034.0,62033.0,0.0001004]
[1719968758431,1.526816,62034.0,62033.0,0.0001004]
[1719968759254,1.58661583,62034.0,62033.0,0.0001004]
[1719968759459,1.84453883,62034.0,62033.0,4e-07]
[1719968760023,1.85353883,62034.0,62033.0,4e-07]
[1719968760227,1.84453883,62034.0,62033.0,4e-07]
[1719968760638,1.85753883,62034.0,62033.0,4e-07]
[1719968760880,1.84453883,62034.0,62033.0,4e-07]
[1719968761088,1.41862,62032.0,62031.0,4e-07]
[1719968761291,1.51882,62032.0,62031.0,4e-07]
[1719968761694,1.971951,62032.0,62031.0,4e-07]
[1719968761956,2.07871052,62032.0,62031.0,4e-07]
[1719968762274,2.13412977,62032.0,62031.0,4e-07]
[1719968762522,2.38968946,62032.0,62031.0,4e-07]
[1719968762735,2.57568946,62032.0,62031.0,4e-07]
[1719968762954,2.30698963,62032.0,62031.0,4e-07]
[1719968763159,2.25992994,62032.0,62031.0,4e-07]
[1719968763336,2.33362977,62032.0,62031.0,4e-07]
[1719968763542,2.32098963,62032.0,62031.0,4e-07]
[1719968764091,2.02715698,62032.0,62031.0,4e-07]
[1719968764308,1.96609729,62032.0,62031.0,4e-07]
[1719968764516,1.98009729,62032.0,62031.0,4e-07]
[1719968765698,2.03979712,62032.0,62031.0,4e-07]
[1719968765913,1.98009729,62032.0,62031.0,4e-07]
[1719968766314,1.99309729,62032.0,62031.0,4e-07]
[1719968766515,1.96599729,62032.0,62031.0,4e-07]
[1719968766715,2.02569712,62032.0,62031.0,4e-07]
[1719968766913,2.03859712,62032.0,62031.0,4e-07]
[1719968767112,2.07265681,62032.0,62031.0,4e-07]
[1719968767315,2.42066977,62032.0,62031.0,4e-07]
[1719968767519,2.47962946,62032.0,62031.0,4e-07]
[1719968767739,2.47952946,62032.0,62031.0,4e-07]
[1719968767918,2.43246977,62032.0,62031.0,4e-07]
[1719968768116,2.57628946,62032.0,62031.0,4e-07]
[1719968768318,3.05168946,62032.0,62031.0,4e-07]
[1719968768518,2.75168946,62032.0,62031.0,4e-07]
[1719968768751,3.05168946,62032.0,62031.0,4e-07]
[1719968769099,3.05168946,62032.0,62017.0,0.188]
[1719968769100,1.419099,62011.0,62010.0,0.0002069]
[1719968769314,1.605299,62011.0,62010.0,0.0002069]
[1719968769483,1.75235869,62011.0,62010.0,9e-07]
[1719968769927,2.11333556,62011.0,62010.0,9e-07]
[1719968770074,2.27363436,62011.0,62010.0,9e-07]
[1719968770280,2.57337467,62011.0,62010.0,9e-07]
[1719968770452,2.62043436,62011.0,62010.0,9e-07]
[1719968770875,2.97444828,62011.0,62010.0,9e-07]
[1719968771078,2.52414849,62011.0,62010.0,9e-07]
[1719968771256,1.790317,62011.0,62010.0,9e-07]
[1719968771737,2.03581683,62011.0,62010.0,9e-07]
[1719968771936,2.19458828,62011.0,62010.0,9e-07]
[1719968773247,2.20858828,62011.0,62010.0,9e-07]
[1719968773655,2.19458828,62011.0,62010.0,9e-07]
[1719968774324,2.20858828,62011.0,62010.0,9e-07]
[1719968774452,2.56359842,62011.0,62010.0,9e-07]
[1719968774651,2.91675572,62011.0,62010.0,9e-07]
[1719968775462,3.30790572,62011.0,62010.0,9e-07]
[1719968775662,3.30780572,62011.0,62010.0,9e-07]
[1719968776061,3.30770572,62011.0,62010.0,9e-07]
[1719968776266,0.05969983,61995.0,61990.0,4.2e-07]
[1719968776472,0.05969983,61995.0,61984.0,0.009229]
[1719968776473,0.18875683,61988.0,61987.0,8.2e-07]
[1719968776693,0.129084,61975.0,61974.0,0.00030017]
[1719968776867,0.129084,61975.0,61974.0,0.16200017]
[1719968776868,0.64562,61975.0,61974.0,0.16200017]
[1719968777065,1.261956,61975.0,61974.0,0.16200017]
[1719968777296,1.261956,61975.0,61974.0,0.34830017]
[1719968778607,1.261956,61975.0,61974.0,0.63182834]
[1719968779046,1.003788,61975.0,61974.0,0.85623287]
[1719968779306,1.003788,61975.0,61974.0,0.91613287]
[1719968779549,0.74562,61975.0,61974.0,0.85202714]
[1719968779765,0.74552,61975.0,61974.0,0.85202714]
[1719968779974,1.032356,61994.0,61993.0,0.34330017]
[1719968780209,0.903311,61994.0,61993.0,0.62682834]
[1719968780666,1.1614,61994.0,61993.0,0.62682834]
[1719968781351,1.1614,61994.0,61993.0,0.62652817]
[1719968781564,1.1614,61994.0,61993.0,0.62682834]
[1719968781758,0.903311,61994.0,61993.0,0.62682834]
[1719968781982,1.003311,61994.0,61993.0,0.62682834]
[1719968782562,1.003211,61994.0,61993.0,0.62682834]
[1719968783040,1.003111,61994.0,61993.0,0.62682834]
[1719968784679,1.003111,61994.0,61993.0,0.62775234]
[1719968785357,1.2612,61994.0,61993.0,0.62745217]
[1719968785474,1.003111,61994.0,61993.0,0.62745217]
[1719968785680,1.003111,61994.0,61993.0,0.62775234]
[1719968786552,1.003211,61994.0,61993.0,0.62775234]
[1719968787158,1.003111,61994.0,61993.0,0.62745217]
[1719968787373,1.003111,61994.0,61993.0,0.62785234]
[1719968787584,1.2612,61994.0,61993.0,0.62785234]
[1719968787936,1.003111,61994.0,61993.0,0.62795234]
[1719968788590,1.003211,61994.0,61993.0,0.62795234]
[1719968789207,1.003311,61994.0,61993.0,0.62795234]
[1719968789634,1.2614,61994.0,61993.0,0.62795234]
[1719968789968,1.2614,61994.0,61993.0,0.62805234]
[1719968790388,1.003311,61994.0,61993.0,0.62805234]
[1719968790991,1.2614,61994.0,61993.0,0.62805234]
[1719968791434,1.2614,61994.0,61993.0,0.62775217]
[1719968791656,1.705489,61994.0,61993.0,0.001224]
[1719968791874,1.161513,61988.0,61987.0,0.00030017]
[1719968792089,1.161513,61988.0,61985.0,0.28352817]
[1719968792090,0.645305,61986.0,61985.0,0.28352817]
[1719968792296,0.1,61986.0,61984.0,0.1497]
[1719968792517,0.745305,61986.0,61985.0,0.00030017]
[1719968792946,1.261549,61986.0,61985.0,0.00030017]
[1719968793769,1.261549,61986.0,61984.0,0.15000017]
[1719968793770,1.161567,61985.0,61984.0,0.15000017]
[1719968793974,1.161567,61985.0,61984.0,0.1497]
[1719968793975,1.261567,61985.0,61984.0,0.1497]
[1719968795258,1.261567,61985.0,61982.0,0.28352817]
[1719968795259,1.161607,61983.0,61982.0,0.28352817]
[1719968795475,1.261607,61983.0,61982.0,0.28352817]
[1719968795931,1.261607,61983.0,61982.0,0.28382834]
[1719968796586,1.261507,61983.0,61982.0,0.28382834]
[1719968797247,1.261507,61983.0,61982.0,0.28682834]
[1719968797453,1.262507,61983.0,61982.0,0.28682834]
[1719968798322,1.262507,61983.0,61982.0,0.36420676]
[1719968798533,0.746237,61983.0,61982.0,0.92300556]
[1719968799642,0.746237,61983.0,61982.0,0.84562714]
[1719968803292,0.746237,61983.0,61982.0,0.84572714]
[1719968803862,1.004372,61983.0,61982.0,0.84572714]
[1719968804268,1.004372,61983.0,61982.0,0.68542834]
[1719968804406,1.004372,61983.0,61982.0,0.62552834]
[1719968804609,1.004372,61983.0,61982.0,0.43852834]
[1719968805016,1.262507,61983.0,61982.0,0.43852834]
[1719968806403,1.262507,61983.0,61982.0,0.43862834]
[1719968809789,1.262607,61983.0,61982.0,0.43862834]
[1719968810306,1.262607,61983.0,61982.0,0.43872834]
[1719968810783,1.262707,61983.0,61982.0,0.43872834]
[1719968812295,1.262707,61983.0,61982.0,0.28712834]
[1719968813265,1.262807,61983.0,61982.0,0.28712834]
[1719968815111,1.262807,61983.0,61982.0,0.00360017]
[1719968816429,1.520942,61983.0,61982.0,0.00360017]
[1719968816607,1.520942,61983.0,61982.0,0.0033]
[1719968816804,1.707142,61983.0,61982.0,0.0033]
[1719968817366,1.707142,61983.0,61982.0,0.004224]
[1719968817775,1.707982,61983.0,61982.0,0.004224]
[1719968818669,2.29288763,61983.0,61970.0,0.00952917]
[1719968818940,1.420017,61971.0,61970.0,0.00952917]
[1719968819278,1.420017,61971.0,61970.0,0.009229]
[1719968819466,1.420017,61971.0,61970.0,0.00952917]
[1719968819467,1.520017,61971.0,61970.0,0.00952917]
[1719968819605,1.520017,61971.0,61970.0,0.009229]
[1719968820291,1.520017,61971.0,61970.0,1e-06]
[1719968820458,1.522017,61971.0,61970.0,1e-06]
[1719968821313,0.258228,61961.0,61956.0,0.28382834]
[1719968821483,0.1,61960.0,61950.0,0.28352817]
[1719968821647,0.129136,61950.0,61949.0,0.28382834]
[1719968821854,0.64568,61950.0,61949.0,0.85132714]
[1719968822063,0.1,61960.0,61949.0,0.85132714]
[1719968822064,0.1,61960.0,61959.0,0.34372834]
[1719968822271,0.1,61960.0,61959.0,1.03732714]
[1719968822497,0.1,61960.0,61959.0,1.4976902]
[1719968822498,0.229115,61960.0,61959.0,1.4976902]
[1719968822699,0.229115,61960.0,61959.0,1.3116902]
[1719968823133,0.229015,61960.0,61959.0,1.3116902]
[1719968823611,0.230015,61960.0,61959.0,1.3116902]
[1719968823808,0.228915,61960.0,61959.0,1.3116902]
[1719968824010,0.487146,61960.0,61959.0,1.0116902]
[1719968824250,0.229815,61960.0,61959.0,1.0116902]
[1719968824457,0.228815,61960.0,61959.0,1.0116902]
[1719968824774,0.001,61960.0,61959.0,1.5116902]
[1719968824976,0.258191,61970.0,61969.0,0.66032834]
[1719968825175,0.387285,61970.0,61969.0,0.91665997]
[1719968825375,0.387185,61970.0,61969.0,0.91665997]
[1719968825629,0.387085,61970.0,61969.0,0.91665997]
[1719968826223,0.258171,61975.0,61974.0,0.31382834]
[1719968826424,0.130507,61983.0,61982.0,0.62822834]
[1719968826623,0.388642,61983.0,61982.0,0.78852714]
[1719968826833,0.746777,61983.0,61982.0,0.78862714]
[1719968827241,0.746777,61983.0,61982.0,0.90048985]
[1719968827777,0.750777,61983.0,61982.0,0.90048985]
[1719968827968,0.746777,61983.0,61982.0,0.90048985]
[1719968828276,0.646777,61983.0,61982.0,0.90048985]
[1719968829239,0.648777,61983.0,61982.0,0.90048985]
[1719968829612,0.648777,61983.0,61982.0,0.81862714]
[1719968829773,0.748777,61983.0,61982.0,0.81862714]
[1719968830743,0.748777,61983.0,61982.0,0.81872714]
[1719968831022,0.00344,61983.0,61982.0,1.30472714]
[1719968831179,0.00344,61983.0,61982.0,1.4650902]
[1719968831523,0.390642,61983.0,61982.0,0.78872714]
[1719968831670,0.648777,61983.0,61982.0,0.81872714]
[1719968832074,0.390642,61983.0,61982.0,0.81872714]
[1719968832519,0.390642,61983.0,61982.0,1.19888296]
[1719968832520,0.10344,61983.0,61982.0,1.19888296]
[1719968832724,0.10144,61983.0,61982.0,1.35924602]
[1719968832982,0.00244,61983.0,61982.0,1.85492118]
[1719968833260,0.00144,61983.0,61982.0,1.85492118]
[1719968833401,0.00144,61983.0,61982.0,1.98399018]
[1719968833605,0.0003,61994.0,61993.0,0.9543035]
[1719968833807,0.0003,61994.0,61993.0,1.3146023]
[1719968834516,0.0003,61994.0,61993.0,0.98420213]
[1719968834739,0.0003,61994.0,61993.0,1.3145023]
[1719968834940,0.0003,61994.0,61993.0,1.0145023]
[1719968835154,0.129344,61994.0,61993.0,1.17486536]
[1719968835676,0.129344,61994.0,61993.0,1.17476536]
[1719968835876,0.903611,61994.0,61993.0,0.4395023]
[1719968836075,0.487433,61994.0,61993.0,0.7695023]
[1719968836324,0.229344,61994.0,61993.0,1.1139023]
[1719968836630,0.0013,61994.0,61993.0,1.3139023]
[1719968836848,0.0013,61994.0,61993.0,1.47426536]
[1719968837034,0.0013,61994.0,61993.0,1.47416536]
[1719968837840,0.0013,61994.0,61993.0,1.47406536]
[1719968838223,0.0013,61994.0,61993.0,1.77406536]
[1719968838424,0.388433,61994.0,61993.0,1.0136023]
[1719968838647,0.388433,61994.0,61993.0,1.3136023]
[1719968839219,0.388433,61994.0,61993.0,1.6136023]
[1719968839220,0.0013,61994.0,61993.0,1.6136023]
[1719968840341,0.0013,61994.0,61993.0,1.6135023]
[1719968840784,0.0013,61994.0,61993.0,1.6134023]
[1719968841022,0.0013,61994.0,61993.0,1.77376536]
[1719968841427,0.0013,61994.0,61993.0,1.77366536]
[1719968842031,0.0013,61994.0,61993.0,1.77356536]
[1719968842593,0.0013,61994.0,61993.0,1.77346536]
[1719968843739,0.0013,61994.0,61993.0,1.79646536]
[1719968843942,0.0013,61994.0,61993.0,1.79636536]
[1719968844865,0.258013,62013.0,61993.0,1.79636536]
[1719968844866,0.386959,62022.0,62021.0,0.3083035]
[1719968845068,0.644931,62022.0,62021.0,0.49943265]
[1719968845505,0.386958,62022.0,62021.0,0.83553265]
[1719968845714,0.257959,62026.0,62025.0,0.3083035]
[1719968845715,0.386937,62026.0,62025.0,0.3083035]
[1719968845937,0.644896,62026.0,62025.0,0.4685023]
[1719968846139,0.386937,62026.0,62025.0,0.55204557]
[1719968846350,0.386937,62026.0,62025.0,0.85194557]
[1719968846900,0.128978,62026.0,62025.0,0.85194557]
[1719968847106,0.386905,62031.0,62030.0,0.3080035]
[1719968847302,0.386905,62031.0,62030.0,0.4683023]
[1719968847303,0.644843,62031.0,62030.0,0.4683023]
[1719968847507,0.644843,62031.0,62030.0,0.71238686]
[1719968847911,0.644843,62031.0,62030.0,0.71218669]
[1719968848263,0.644843,62031.0,62030.0,0.92590213]
[1719968848264,0.386905,62031.0,62030.0,0.92590213]
[1719968848469,0.486905,62031.0,62030.0,0.92590213]
[1719968848613,0.486905,62031.0,62030.0,1.12370213]
[1719968848820,0.486905,62031.0,62030.0,1.13170213]
[1719968848821,0.387905,62031.0,62030.0,1.13170213]
[1719968849034,0.387905,62031.0,62030.0,1.29206519]
[1719968849210,0.387902,62031.0,62030.0,0.83170213]
[1719968849420,0.387902,62031.0,62030.0,0.47610213]
[1719968849626,0.387902,62031.0,62030.0,0.46800213]
[1719968849627,0.644837,62031.0,62030.0,0.46800213]
[1719968850171,0.645837,62031.0,62030.0,0.48000213]
[1719968850378,0.745837,62031.0,62030.0,0.46800213]
[1719968850655,0.745837,62031.0,62030.0,0.59149234]
[1719968850656,0.746837,62031.0,62030.0,0.59149234]
[1719968850894,0.747677,62031.0,62030.0,0.59149234]
[1719968851117,0.747677,62031.0,62030.0,0.89149234]
[1719968851118,0.4818805,62031.0,62030.0,0.89149234]
[1719968851363,0.7398155,62031.0,62030.0,0.59149234]
[1719968851789,0.7398155,62031.0,62030.0,0.47990213]
[1719968852006,0.7398155,62031.0,62030.0,0.46780213]
[1719968852007,0.7378155,62031.0,62030.0,0.46780213]
[1719968852208,0.7378155,62031.0,62030.0,0.47980213]
[1719968852413,0.7388155,62031.0,62030.0,0.47970213]
[1719968852623,0.7378155,62031.0,62030.0,0.58046234]
[1719968852843,0.7378155,62031.0,62030.0,0.47970213]
[1719968852844,0.7388155,62031.0,62030.0,0.47970213]
[1719968853250,0.9967505,62031.0,62030.0,0.46770213]
[1719968853452,0.9967505,62031.0,62030.0,0.43770213]
[1719968853656,0.9977505,62031.0,62030.0,0.44960213]
[1719968853849,0.9957505,62031.0,62030.0,0.43760213]
[1719968854071,0.9957505,62031.0,62030.0,0.43750213]
[1719968854656,0.9957505,62031.0,62030.0,0.43740213]
[1719968854862,0.9957505,62031.0,62030.0,0.43730213]
[1719968855072,0.9957505,62031.0,62030.0,0.43720213]
[1719968855378,0.9957505,62031.0,62030.0,0.53382234]
[1719968855543,0.9967505,62031.0,62030.0,0.44900213]
[1719968855702,0.9957505,62031.0,62030.0,0.46700213]
[1719968855902,0.9957505,62031.0,62025.0,0.2]
[1719968855903,3.17788787,62026.0,62025.0,0.2]
[1719968856134,3.17788787,62026.0,62021.0,0.17993035]
[1719968856135,0.386946,62024.0,62023.0,0.2]
[1719968856337,1.002874,62024.0,62023.0,0.2]
[1719968857005,0.357964,62024.0,62023.0,0.1602988]
[1719968857325,0.4384,62024.0,62015.0,0.2]
[1719968857515,0.386989,62017.0,62016.0,0.1601988]
[1719968857732,1.002975,62017.0,62016.0,0.1600988]
[1719968857933,1.002975,62017.0,62016.0,0.1599988]
[1719968858272,1.002975,62017.0,62016.0,0.1598988]
[1719968858471,1.002975,62017.0,62016.0,0.1597988]
[1719968858675,1.002975,62017.0,62016.0,0.1596988]
[1719968858877,1.002975,62017.0,62016.0,0.1595988]
[1719968859283,1.002975,62017.0,62016.0,0.1594988]
[1719968859496,1.003975,62017.0,62016.0,0.1694988]
[1719968859738,1.004075,62017.0,62016.0,0.1694988]
[1719968862585,1.004175,62017.0,62016.0,0.1694988]
[1719968863640,1.004175,62017.0,62016.0,0.1695988]
[1719968863830,1.262168,62017.0,62016.0,0.1695988]
[1719968863976,1.262168,62017.0,62016.0,0.1696988]
[1719968864180,1.262168,62017.0,62016.0,0.1697988]
[1719968864785,1.262268,62017.0,62016.0,0.1697988]
[1719968865190,1.262268,62017.0,62016.0,0.0103]
[1719968867019,1.262268,62017.0,62016.0,0.1705988]
[1719968867714,1.262268,62017.0,62016.0,0.0104]
[1719968867841,1.55830083,62017.0,62016.0,0.0104]
[1719968868034,2.07760083,62017.0,62016.0,0.0104]
[1719968868840,2.07660083,62017.0,62016.0,0.0004]
[1719968869159,0.387021,61996.0,61995.0,0.2]
[1719968869510,0.387021,61996.0,61995.0,0.3602988]
[1719968870096,0.903183,61996.0,61995.0,0.3602988]
[1719968870435,0.903183,61996.0,61995.0,0.3712988]
[1719968870436,0.904183,61996.0,61995.0,0.3712988]
[1719968870999,0.904083,61996.0,61995.0,0.3712988]
[1719968871553,0.645902,61996.0,61995.0,0.82948666]
[1719968871956,0.644902,61996.0,61995.0,0.81848666]
[1719968872361,0.644902,61996.0,61995.0,0.82748666]
[1719968872362,0.645802,61996.0,61995.0,0.82748666]
[1719968872524,0.644802,61996.0,61995.0,0.81848666]
[1719968872956,0.644802,61996.0,61995.0,0.82748666]
[1719968872957,0.645802,61996.0,61995.0,0.82748666]
[1719968873156,0.645802,61996.0,61995.0,0.81848666]
[1719968873528,0.646802,61996.0,61995.0,0.82748666]
[1719968873737,0.644702,61996.0,61995.0,0.6983988]
[1719968874636,0.644802,61996.0,61995.0,0.6983988]
[1719968874964,0.644702,61996.0,61995.0,0.6983988]
[1719968875390,0.645802,61996.0,61995.0,0.7566012]
[1719968875601,0.645802,61996.0,61995.0,0.6983988]
[1719968875962,0.646902,61996.0,61995.0,0.7083988]
[1719968876168,0.645902,61996.0,61995.0,0.7083988]
[1719968876372,0.645902,61996.0,61995.0,0.7183988]
[1719968876601,0.646902,61996.0,61995.0,0.7184988]
[1719968876800,0.645902,61996.0,61995.0,0.6984988]
[1719968876994,0.387921,61996.0,61995.0,1.0084988]
[1719968877202,0.388921,61996.0,61995.0,0.77069144]
[1719968877531,0.389021,61996.0,61995.0,0.77069144]
[1719968877687,0.389121,61996.0,61995.0,0.77069144]
[1719968878047,0.389121,61996.0,61995.0,0.7085988]
[1719968878977,0.387121,61996.0,61995.0,0.6985988]
[1719968879305,0.388121,61996.0,61995.0,0.7085988]
[1719968881302,0.646202,61996.0,61995.0,0.7085988]
[1719968881459,0.646202,61996.0,61995.0,0.5153988]
[1719968882430,0.646202,61996.0,61995.0,0.5154988]
[1719968882630,0.645202,61996.0,61995.0,0.5054988]
[1719968882931,0.388121,61996.0,61995.0,0.8154988]
[1719968883131,0.388121,61996.0,61995.0,0.86162033]
[1719968883582,0.13064,61996.0,61995.0,0.86162033]
[1719968884398,0.0016,61996.0,61995.0,1.3037988]
[1719968884594,0.0016,61996.0,61995.0,1.3277228]
[1719968887511,0.388721,61996.0,61995.0,0.5164228]
[1719968887716,0.646802,61996.0,61995.0,0.5164228]
[1719968887915,0.646802,61996.0,61995.0,0.3715228]
[1719968891579,0.904883,61996.0,61995.0,0.1715228]
[1719968891776,1.004883,61996.0,61995.0,0.1715228]
[1719968892890,1.451664,61996.0,61995.0,0.1715228]
[1719968893956,1.48970383,61996.0,61995.0,0.011224]
[1719968895022,1.63780383,61996.0,61995.0,0.011224]
[1719968895477,1.63680383,61996.0,61995.0,0.001224]
[1719968895819,1.63780383,61996.0,61995.0,0.010224]
[1719968896021,1.65466439,61996.0,61995.0,0.010224]
[1719968898276,1.63934632,61996.0,61995.0,0.010224]
[1719968899126,1.89652732,61996.0,61995.0,0.001224]
[1719968899534,1.87966676,61996.0,61995.0,0.001224]
[1719968900064,1.88166676,61996.0,61995.0,0.001224]
[1719968900472,1.88366676,61996.0,61995.0,0.001224]
[1719968900873,1.90024085,61996.0,61995.0,0.001224]
[1719968901415,1.88376676,61996.0,61995.0,0.001224]
[1719968901688,1.9008114,61996.0,61995.0,0.001224]
[1719968901860,1.88386676,61996.0,61995.0,0.001224]
[1719968902037,1.93081288,61996.0,61995.0,0.001224]
[1719968902219,1.93081288,61996.0,61995.0,1e-06]
[1719968902571,1.93081288,61996.0,61995.0,0.000101]
[1719968902924,1.97414261,61996.0,61995.0,0.000101]
[1719968903140,1.94414261,61996.0,61995.0,0.000101]
[1719968903514,1.90081288,61996.0,61995.0,0.000101]
[1719968904492,1.88386676,61996.0,61995.0,0.000101]
[1719968904811,1.9010213,61996.0,61995.0,0.000101]
[1719968905145,1.88386676,61996.0,61995.0,0.000101]
[1719968905710,1.88386676,61996.0,61995.0,1e-06]
[1719968906467,1.88386676,61996.0,61995.0,0.000101]
[1719968909964,0.03803983,61994.0,61993.0,1e-06]
[1719968910165,2.37693935,61994.0,61993.0,1e-06]
[1719968910585,2.52199427,61994.0,61993.0,1e-06]
[1719968910801,2.555133,61994.0,61993.0,1e-06]
[1719968911553,3.178133,61994.0,61993.0,1e-06]
[1719968912427,0.903703,61967.0,61966.0,0.1566]
[1719968912631,1.003703,61967.0,61966.0,0.3168988]
[1719968914129,1.004703,61967.0,61966.0,0.3208988]
[1719968914444,0.746502,61967.0,61966.0,0.5134988]
[1719968915033,0.746502,61967.0,61966.0,0.8134988]
[1719968915452,0.746502,61967.0,61966.0,0.64484868]
[1719968915642,0.2301,61967.0,61966.0,0.8134988]
[1719968916004,0.488201,61967.0,61966.0,0.8134988]
[1719968916293,0.488101,61967.0,61966.0,0.8134988]
[1719968916497,0.488001,61967.0,61966.0,0.8134988]
[1719968916792,0.487901,61967.0,61966.0,0.8134988]
[1719968917017,0.487901,61967.0,61966.0,0.5134988]
[1719968917018,0.487801,61967.0,61966.0,0.5134988]
[1719968917293,0.487801,61967.0,61966.0,0.8134988]
[1719968918295,0.487801,61967.0,61966.0,0.94484868]
[1719968919900,0.487801,61967.0,61966.0,0.5134988]
[1719968922389,0.487801,61967.0,61966.0,0.8134988]
[1719968922587,0.487801,61967.0,61966.0,0.5134988]
[1719968924355,0.487801,61967.0,61966.0,0.8135988]
[1719968924764,0.487801,61967.0,61966.0,0.5135988]
[1719968925140,0.1011,61967.0,61966.0,0.94495868]
[1719968925354,0.1011,61967.0,61966.0,1.46795868]
[1719968925355,0.0011,61967.0,61966.0,1.46795868]
[1719968925518,0.0012,61967.0,61966.0,1.46795868]
[1719968925722,0.0013,61967.0,61966.0,1.46795868]
[1719968926534,0.0013,61967.0,61966.0,1.46805868]
[1719968928600,0.0014,61967.0,61966.0,1.46805868]
[1719968928804,0.0014,61967.0,61966.0,1.46405868]
[1719968928805,0.0004,61967.0,61966.0,1.46405868]
[1719968929006,0.0004,61967.0,61966.0,1.46415868]
[1719968929212,0.0014,61967.0,61966.0,1.3377988]
[1719968929545,0.0005,61967.0,61966.0,1.3327988]
[1719968929766,0.0005,61967.0,61966.0,1.3377988]
[1719968929961,0.0015,61967.0,61966.0,1.3377988]
[1719968930162,0.0015,61967.0,61966.0,1.3327988]
[1719968930401,0.0025,61967.0,61966.0,1.49816186]
[1719968930584,0.1316,61967.0,61966.0,0.7147988]
[1719968930814,0.1296,61967.0,61966.0,1.0097988]
[1719968931547,0.0005,61967.0,61966.0,1.0097988]
[1719968931975,0.0005,61967.0,61966.0,1.14077868]
[1719968932175,0.0005,61967.0,61966.0,1.15477868]
[1719968932176,0.1296,61967.0,61966.0,1.15477868]